bitfinex-derivatives/quotes_SOLF0:USTF0_20250505
["timestamp","ask_amount","ask_price","bid_price","bid_amount"]
[1746460993985,27.2897,144.1,143.99,25.18]
[1746460994281,27.2897,144.1,144.01,6.944]
[1746460994981,6.943,144.04,144.01,6.944]
[1746460996387,6.9426,144.05,144.02,6.9437]
[1746460997491,6.9429,144.04,144.01,6.9441]
[1746460997688,41.1698,144.1,143.99,25.18]
[1746460998083,41.1698,144.1,144.01,6.944]
[1746460998589,6.9429,144.04,144.01,6.944]
[1746461000793,6.9426,144.05,144.02,6.9437]
[1746461002194,6.9421,144.06,144.0,1.0]
[1746461002500,27.2897,144.1,144.0,1.0]
[1746461002793,6.9416,144.07,144.04,6.9426]
[1746461003089,27.2897,144.1,144.0,12.77026125]
[1746461003596,6.9421,144.06,144.03,6.9431]
[1746461006398,6.9421,144.06,144.04,6.6013503]
[1746461006698,6.9421,144.06,144.03,6.9431]
[1746461008299,27.2897,144.1,144.0,1.0]
[1746461008698,11.77026125,144.09,144.0,7.9445]
[1746461009098,11.77026125,144.09,144.0,1.0]
[1746461009398,6.9429,144.04,144.01,6.9442]
[1746461010402,11.77026125,144.09,144.01,6.9442]
[1746461011000,6.9423,144.05,144.01,6.9442]
[1746461011197,6.9423,144.05,144.02,6.9438]
[1746461011397,11.77026125,144.09,144.0,1.0]
[1746461011398,51.77026818,144.1,144.0,1.0]
[1746461011600,6.9417,144.07,144.0,12.77026125]
[1746461011800,6.9417,144.07,144.01,2.1056]
[1746461012402,6.9419,144.06,144.03,6.943]
[1746461013302,6.9419,144.06,144.04,6.61352895]
[1746461013596,6.9419,144.06,144.05,6.61352895]
[1746461015304,6.9416,144.07,144.05,6.61352895]
[1746461015502,6.9416,144.07,144.06,6.61352895]
[1746461016501,6.9405,144.09,144.06,6.61352895]
[1746461016701,25.18,144.1,144.06,6.61352895]
[1746461017004,25.18,144.1,144.07,6.61352895]
[1746461017204,6.9413,144.08,144.07,6.61352895]
[1746461019003,24.48056818,144.13,144.07,6.61352895]
[1746461019207,25.16,144.12,144.07,6.61352895]
[1746461019506,25.16,144.12,144.08,6.61352895]
[1746461019805,6.9403,144.1,144.06,6.9417]
[1746461020108,25.16,144.12,144.07,6.61695575]
[1746461020505,25.16,144.12,144.08,6.61695575]
[1746461020809,6.9404,144.09,144.08,6.61695575]
[1746461021006,6.9404,144.09,144.04,6.9426]
[1746461021007,25.16,144.12,144.04,6.9426]
[1746461021303,25.16,144.12,144.03,27.321]
[1746461021509,6.9416,144.07,144.03,34.264]
[1746461021708,36.93026125,144.12,144.03,27.321]
[1746461021911,6.9427,144.05,144.03,27.321]
[1746461022209,25.16,144.08,144.01,9.0496]
[1746461022508,6.9427,144.05,144.01,9.0496]
[1746461023109,6.9429,144.04,144.01,9.0496]
[1746461024511,6.9425,144.05,144.01,9.0496]
[1746461026113,6.9425,144.05,144.02,6.9436]
[1746461026412,6.9421,144.06,144.02,6.9436]
[1746461027213,25.16,144.08,144.03,6.9432]
[1746461027913,6.9423,144.06,144.03,6.9432]
[1746461032516,6.9423,144.06,144.02,6.9435]
[1746461032821,6.9423,144.06,144.01,2.1056]
[1746461033317,6.9423,144.06,144.03,6.9433]
[1746461034317,6.9423,144.05,144.02,6.9435]
[1746461034919,6.9421,144.06,144.03,6.9432]
[1746461035324,25.16,144.08,144.03,6.9432]
[1746461035518,6.9423,144.05,144.02,6.9435]
[1746461035822,6.9423,144.05,144.01,2.1056]
[1746461036021,6.9421,144.06,144.03,6.9432]
[1746461038923,6.9416,144.07,144.04,6.9425]
[1746461039220,25.16,144.08,144.04,6.9425]
[1746461039426,6.9421,144.06,144.01,2.1056]
[1746461040527,25.16,144.08,144.01,2.1056]
[1746461040725,25.16,144.08,144.02,6.9435]
[1746461041125,6.9427,144.05,144.02,6.9435]
[1746461041327,25.16,144.08,144.0,26.16]
[1746461041825,11.77026125,144.06,144.0,1.0]
[1746461042421,6.9443,144.01,144.0,1.0]
[1746461043515,32.104,144.02,144.0,1.0]
[1746461043721,25.16,144.02,144.0,1.0]
[1746461044026,6.9443,144.01,144.0,1.0]
[1746461050228,6.9457,143.98,143.97,0.27631]
[1746461050733,6.9454,143.99,143.97,0.27631]
[1746461051333,6.9457,143.98,143.97,0.27631]
[1746461052939,32.0857,143.98,143.97,0.27631]
[1746461054033,6.9481,143.93,143.92,1.9728]
[1746461054241,25.14,143.98,143.88,2.1158]
[1746461054433,11.77026125,143.97,143.88,2.1158]
[1746461054736,6.9494,143.91,143.87,25.16]
[1746461054932,6.9494,143.91,143.87,32.1107]
[1746461055235,25.16,143.94,143.85,2.1158]
[1746461055435,36.93026125,143.94,143.86,6.9513]
[1746461055841,6.9494,143.91,143.86,6.9513]
[1746461056341,6.9494,143.91,143.87,6.951]
[1746461057041,6.9487,143.92,143.88,6.9504]
[1746461058441,6.9491,143.91,143.87,6.9508]
[1746461058838,36.93026125,143.94,143.87,6.9508]
[1746461059042,6.9498,143.9,143.86,6.9512]
[1746461060142,6.9503,143.89,143.85,9.0675]
[1746461060347,36.93026125,143.94,143.85,2.1158]
[1746461061045,6.9496,143.91,143.88,1.0]
[1746461062239,6.9496,143.9,143.88,1.0]
[1746461064642,6.9493,143.91,143.88,1.0]
[1746461065444,6.9497,143.9,143.88,1.0]
[1746461066447,36.93026125,143.94,143.88,7.9504]
[1746461066948,36.93026125,143.94,143.88,1.0]
[1746461067146,6.9493,143.91,143.88,1.0]
[1746461067447,36.93026125,143.94,143.88,1.0]
[1746461067751,6.949,143.92,143.88,7.9502]
[1746461068343,25.16,143.94,143.88,1.0]
[1746461068941,32.1079,143.94,143.91,6.9491]
[1746461069243,25.16,143.94,143.91,6.9491]
[1746461070451,6.9482,143.93,143.9,6.9494]
[1746461072450,6.9482,143.93,143.91,6.949]
[1746461072650,6.9482,143.93,143.89,2.0609]
[1746461073050,6.9482,143.93,143.9,6.9495]
[1746461074452,6.9482,143.93,143.91,6.9491]
[1746461074850,6.9479,143.94,143.89,2.0609]
[1746461075052,25.16,143.97,143.9,2.0812]
[1746461075551,25.16,144.01,143.92,11.77026125]
[1746461075752,25.16,144.01,143.93,25.16]
[1746461075943,6.9455,143.99,143.93,25.16]
[1746461076252,25.16,144.01,143.93,25.16]
[1746461076450,32.1045,144.01,143.95,11.77026125]
[1746461076640,6.9445,144.01,143.96,4.192]
[1746461077150,6.9439,144.02,143.96,4.192]
[1746461077346,24.48056818,144.03,143.97,1.9819]
[1746461077546,24.48056818,144.03,143.97,27.1219]
[1746461078051,6.944,144.02,143.99,6.9451]
[1746461080152,6.9444,144.01,143.99,6.9451]
[1746461080850,6.944,144.02,143.99,6.9451]
[1746461081148,25.14,144.04,143.99,6.9451]
[1746461081354,6.9441,144.02,143.97,27.1219]
[1746461081953,6.9443,144.01,143.97,27.1219]
[1746461082353,6.9443,144.01,143.98,6.9453]
[1746461082757,6.9443,144.01,143.97,27.1219]
[1746461083453,6.9447,144.0,143.98,6.9456]
[1746461083951,6.9444,144.01,143.98,6.9456]
[1746461084455,6.9439,144.02,143.99,6.945]
[1746461085254,6.9435,144.03,144.0,6.9444]
[1746461085556,25.14,144.04,143.97,27.1219]
[1746461085955,6.9433,144.04,143.97,27.1219]
[1746461086361,6.9433,144.04,144.01,6.9438]
[1746461086755,6.9433,144.03,144.01,6.9438]
[1746461087059,25.14,144.07,143.97,27.1219]
[1746461087359,6.944,144.02,143.99,6.945]
[1746461087656,25.12,144.03,143.97,1.9819]
[1746461087864,25.12,144.02,143.96,4.192]
[1746461088055,25.12,144.02,143.97,6.9457]
[1746461088257,25.12,144.02,143.96,4.192]
[1746461088660,6.9446,144.01,143.98,6.9457]
[1746461089562,6.9446,144.01,143.99,6.9452]
[1746461089965,25.12,144.05,143.97,11.77026125]
[1746461090158,25.12,144.05,144.02,6.9435]
[1746461090559,32.0626,144.05,144.02,6.9435]
[1746461091364,6.9429,144.04,144.02,6.9435]
[1746461091658,6.9429,144.04,144.01,6.944]
[1746461092263,6.9429,144.04,144.02,6.9437]
[1746461092863,32.0626,144.05,144.02,6.9437]
[1746461094063,25.12,144.05,144.03,6.9432]
[1746461096365,25.12,144.05,144.02,6.9435]
[1746461097059,32.0624,144.05,144.02,6.9435]
[1746461097465,25.12,144.05,144.02,6.9435]
[1746461098164,25.12,144.05,144.03,6.9432]
[1746461098663,25.12,144.05,144.02,6.9435]
[1746461099264,25.12,144.05,143.99,2.039]
[1746461099564,32.0624,144.05,143.99,2.039]
[1746461099963,32.0624,144.05,144.02,6.9434]
[1746461100364,6.9429,144.04,143.99,2.039]
[1746461100571,25.12,144.05,144.01,6.9442]
[1746461100864,6.943,144.04,144.01,6.9442]
[1746461101064,25.12,144.05,144.02,6.9435]
[1746461101264,25.12,144.05,143.99,2.039]
[1746461101564,6.943,144.04,144.01,6.9439]
[1746461102965,6.943,144.04,144.02,6.9437]
[1746461104166,25.12,144.05,144.03,6.9432]
[1746461105268,32.0626,144.05,144.02,6.9435]
[1746461107469,25.12,144.05,143.99,2.039]
[1746461108071,6.9435,144.03,144.01,6.9442]
[1746461108271,25.12,144.05,143.99,2.039]
[1746461108670,32.0623,144.05,143.99,2.039]
[1746461109372,6.9428,144.04,143.99,2.039]
[1746461109671,6.9428,144.04,144.02,6.9435]
[1746461110171,6.9433,144.03,144.01,6.944]
[1746461110372,25.12,144.05,143.99,2.039]
[1746461110773,6.944,144.02,144.0,6.9445]
[1746461111173,25.12,144.05,143.99,2.039]
[1746461111370,25.12,144.05,143.98,25.12]
[1746461111572,25.12,144.05,143.99,6.945]
[1746461112073,6.9442,144.02,143.99,6.945]
[1746461112275,25.12,144.05,143.98,25.12]
[1746461112773,6.9438,144.02,143.98,25.12]
[1746461113077,6.9438,144.02,143.99,6.945]
[1746461113277,25.12,144.05,143.99,6.945]
[1746461113873,6.944,144.02,143.99,6.945]
[1746461114873,25.12,144.05,143.97,18.71606125]
[1746461115078,11.77026125,144.04,143.94,25.1]
[1746461115275,13.74106125,144.04,143.94,25.1]
[1746461115476,6.945,144.0,143.97,6.9461]
[1746461115882,25.1,144.01,143.94,25.1]
[1746461116178,25.1,144.01,143.95,11.77026125]
[1746461116379,27.0708,144.04,143.95,11.77026125]
[1746461116574,6.9435,144.03,144.0,6.9447]
[1746461117184,32.0431,144.04,143.96,6.0987]
[1746461117681,32.0431,144.04,144.01,6.944]
[1746461118084,32.0431,144.04,143.98,36.87026125]
[1746461118285,6.9424,144.05,144.03,6.9431]
[1746461120385,6.9424,144.05,144.02,6.9435]
[1746461121792,6.9424,144.05,144.01,6.944]
[1746461122291,6.9424,144.05,144.02,6.9436]
[1746461123394,6.9424,144.05,144.01,6.9441]
[1746461123895,20.85,144.0,143.82,65.52160803]
[1746461124193,39.91655239,143.99,143.86,36.88885239]
[1746461124391,39.91655239,143.99,143.89,6.9498]
[1746461124591,39.91655239,143.99,143.86,36.88885239]
[1746461124993,39.91655239,143.99,143.87,6.9508]
[1746461125595,39.91655239,143.99,143.86,36.88885239]
[1746461125796,25.1,143.98,143.87,18.85613557]
[1746461126096,25.1,143.98,143.89,2.03]
[1746461126296,6.9457,143.99,143.9,25.1]
[1746461126488,6.9457,143.99,143.91,3.9594]
[1746461126690,6.9457,143.99,143.95,6.9471]
[1746461126890,6.9458,143.98,143.91,3.9594]
[1746461127090,25.1,144.01,143.91,3.9594]
[1746461127494,6.9461,143.98,143.91,3.9594]
[1746461128398,6.9461,143.98,143.95,6.9469]
[1746461129903,18.85613557,144.06,143.94,25.1]
[1746461130095,25.1,144.04,143.94,25.1]
[1746461130400,6.9443,144.01,143.99,6.9452]
[1746461130599,6.9443,144.01,143.95,2.0328]
[1746461130799,25.1,144.04,143.95,2.0328]
[1746461131001,6.944,144.02,143.98,6.9453]
[1746461131804,6.944,144.02,143.99,6.9452]
[1746461132295,6.944,144.02,143.95,2.0328]
[1746461132791,6.9443,144.01,143.95,2.0328]
[1746461133395,6.9443,144.01,143.98,6.9453]
[1746461133902,6.9448,144.0,143.97,6.9459]
[1746461134200,25.1,144.04,143.97,6.9459]
[1746461134602,6.9451,144.0,143.97,6.9459]
[1746461134801,6.9451,144.0,143.98,6.9457]
[1746461135003,6.9451,144.0,143.95,2.0328]
[1746461135406,6.9451,144.0,143.97,6.9459]
[1746461135605,6.9451,144.0,143.96,25.1]
[1746461135807,6.9451,144.0,143.98,6.9457]
[1746461136307,6.9445,144.01,143.98,6.9457]
[1746461136501,25.1,144.04,143.98,6.9457]
[1746461136702,25.1,144.04,143.97,6.9461]
[1746461137506,6.9441,144.02,143.95,27.1328]
[1746461137706,25.1,144.04,143.95,27.1328]
[1746461138105,6.9437,144.03,143.99,6.945]
[1746461138300,25.1,144.04,143.99,6.945]
[1746461138805,6.9435,144.03,143.99,6.945]
[1746461139104,25.1,144.04,143.99,6.945]
[1746461139300,6.9439,144.02,143.95,27.1328]
[1746461139610,25.1,144.04,143.95,27.1328]
[1746461139906,6.944,144.02,143.98,6.9454]
[1746461140804,6.944,144.02,143.99,6.9452]
[1746461141104,6.9435,144.03,143.95,27.1328]
[1746461141308,6.9435,144.03,143.99,6.9448]
[1746461141500,32.043,144.04,143.95,27.1328]
[1746461141696,25.08,144.07,143.96,18.85613557]
[1746461142005,6.9419,144.06,144.03,6.943]
[1746461142609,6.9425,144.05,144.03,6.943]
[1746461142806,6.9425,144.05,144.0,25.08]
[1746461143205,6.9425,144.05,144.02,6.9435]
[1746461144710,6.9425,144.05,144.03,6.9432]
[1746461145403,6.9421,144.06,144.04,6.9428]
[1746461145714,25.08,144.1,144.01,2.0834]
[1746461145914,6.9409,144.08,144.01,2.0834]
[1746461146209,25.08,144.1,144.01,2.0834]
[1746461146410,6.9416,144.07,144.04,6.9425]
[1746461148309,6.9411,144.08,144.05,6.9423]
[1746461148510,25.08,144.1,144.01,2.0834]
[1746461148810,25.08,144.1,144.05,6.9421]
[1746461149111,6.9413,144.08,144.05,6.9421]
[1746461149407,6.9406,144.09,144.06,6.9418]
[1746461149811,25.08,144.1,144.01,2.0834]
[1746461150008,6.9412,144.08,144.05,6.9422]
[1746461150412,25.08,144.1,144.01,2.0834]
[1746461150615,6.9407,144.09,144.06,6.9418]
[1746461151415,6.9401,144.1,144.04,25.08]
[1746461151616,6.9401,144.1,144.05,2.0237]
[1746461151916,6.9392,144.12,144.05,2.0237]
[1746461152115,25.08,144.13,144.05,3.9936]
[1746461152316,6.9394,144.12,144.05,3.9936]
[1746461152512,25.08,144.13,144.05,3.9936]
[1746461152818,6.9394,144.11,144.05,3.9936]
[1746461153518,6.9394,144.11,144.08,6.9406]
[1746461153812,6.94,144.1,144.05,3.9936]
[1746461154109,6.9402,144.1,144.07,6.9414]
[1746461154414,25.08,144.13,144.05,3.9936]
[1746461154717,6.9396,144.11,144.08,6.9408]
[1746461155216,6.9396,144.11,144.05,3.9936]
[1746461156820,6.9396,144.11,144.08,6.9407]
[1746461157020,6.9395,144.11,144.05,3.9936]
[1746461157620,6.9395,144.11,144.09,6.9402]
[1746461159922,6.9399,144.1,144.08,6.9406]
[1746461160218,25.08,144.13,144.05,3.9936]
[1746461160621,6.9398,144.11,144.08,6.9405]
[1746461160919,25.08,144.13,144.08,6.9405]
[1746461161120,6.9397,144.11,144.08,6.9405]
[1746461161916,25.08,144.13,144.07,6.9412]
[1746461162121,25.08,144.13,144.05,3.9936]
[1746461162616,36.83959498,144.13,144.05,29.0536]
[1746461162821,36.83959498,144.13,144.05,27.0837]
[1746461163624,6.94,144.1,144.07,6.9411]
[1746461164324,6.94,144.1,144.08,6.9409]
[1746461164524,25.08,144.13,144.05,27.0837]
[1746461165126,6.9392,144.12,144.09,6.9399]
[1746461165325,25.08,144.13,144.09,6.9399]
[1746461165827,25.08,144.13,144.08,6.9406]
[1746461166023,25.08,144.13,144.06,2.0766]
[1746461166428,25.08,144.13,144.1,6.9398]
[1746461166429,32.0185,144.13,144.1,6.9398]
[1746461166820,32.0185,144.13,144.06,2.0766]
[1746461167020,6.9391,144.12,144.09,6.9403]
[1746461167426,32.0187,144.13,144.1,6.9398]
[1746461168221,6.939,144.12,144.06,2.0766]
[1746461168425,25.08,144.13,144.06,2.0766]
[1746461168625,6.9393,144.12,144.08,6.9408]
[1746461168926,6.9393,144.12,144.06,2.0766]
[1746461169425,25.08,144.13,144.06,2.0766]
[1746461169926,6.939,144.12,144.09,6.9401]
[1746461171431,32.0187,144.13,144.1,6.9398]
[1746461171629,32.0187,144.13,144.06,2.0766]
[1746461172028,6.9387,144.13,144.1,6.9397]
[1746461173029,6.9391,144.12,144.09,6.9402]
[1746461173229,2.119,144.15,144.06,4.1853]
[1746461173626,6.9388,144.13,144.1,6.9399]
[1746461174031,2.119,144.15,144.06,4.1853]
[1746461174329,6.9382,144.14,144.11,6.9392]
[1746461175231,6.9377,144.15,144.12,6.9389]
[1746461175420,25.04,144.16,144.09,25.04]
[1746461175732,6.9383,144.14,144.1,6.9397]
[1746461176032,6.9383,144.14,144.09,25.04]
[1746461176426,6.9383,144.14,144.11,6.9392]
[1746461177032,6.9383,144.14,144.1,6.9397]
[1746461177539,6.9383,144.14,144.11,6.9394]
[1746461177832,6.9376,144.15,144.11,6.9394]
[1746461179132,31.9773,144.16,144.12,6.9387]
[1746461179732,31.9773,144.16,144.13,6.9385]
[1746461179932,2.0795,144.18,144.09,25.04]
[1746461180129,2.0795,144.18,144.1,2.0076]
[1746461180333,2.0795,144.18,144.14,6.9377]
[1746461180529,6.9366,144.17,144.14,6.9377]
[1746461181031,9.0158,144.18,144.14,6.9377]
[1746461181423,2.0795,144.18,144.14,6.9377]
[1746461181727,2.0795,144.18,144.1,2.0076]
[1746461182233,2.0795,144.18,144.11,6.9392]
[1746461183835,6.938,144.15,144.11,6.9392]
[1746461184033,6.938,144.15,144.12,6.9389]
[1746461185129,2.0795,144.18,144.1,2.0076]
[1746461185334,6.938,144.14,144.11,6.9392]
[1746461186135,6.9379,144.15,144.12,6.9388]
[1746461186436,2.0795,144.18,144.12,7.9388]
[1746461186839,6.9379,144.15,144.12,7.9388]
[1746461188138,6.9379,144.15,144.12,1.0]
[1746461189039,6.9379,144.15,144.12,7.9387]
[1746461190543,6.9379,144.15,144.13,6.9384]
[1746461191247,6.9379,144.15,144.12,7.9387]
[1746461192950,6.9379,144.15,144.13,6.9383]
[1746461193252,6.9373,144.16,144.12,1.0]
[1746461193548,6.9373,144.16,144.13,6.9382]
[1746461194352,6.9373,144.16,144.14,6.938]
[1746461194648,25.04,144.19,144.12,1.0]
[1746461195051,25.04,144.19,144.12,7.9385]
[1746461195351,25.04,144.19,144.12,1.0]
[1746461195951,6.9366,144.17,144.13,6.9384]
[1746461196250,25.04,144.19,144.12,1.0]
[1746461196951,6.9379,144.15,144.12,1.0]
[1746461198454,11.75390044,144.17,144.12,1.0]
[1746461198853,6.9384,144.14,144.12,1.0]
[1746461199251,11.75390044,144.17,144.12,1.0]
[1746461199853,6.9385,144.13,144.12,1.0]
[1746461208461,6.9381,144.14,144.12,1.0]
[1746461208662,49.52056818,144.19,144.12,1.0]
[1746461209462,6.9375,144.15,144.12,7.9387]
[1746461211764,6.9373,144.16,144.13,6.9384]
[1746461211966,49.52056818,144.19,144.12,1.0]
[1746461212163,25.04,144.19,144.12,1.0]
[1746461212568,6.937,144.16,144.13,6.9382]
[1746461213067,25.04,144.19,144.12,26.0]
[1746461213265,6.9377,144.15,144.12,32.9387]
[1746461213568,25.04,144.19,144.12,26.0]
[1746461214168,6.9373,144.16,144.13,6.9384]
[1746461214665,25.04,144.19,144.12,26.0]
[1746461214864,6.9374,144.16,144.12,26.0]
[1746461215274,25.04,144.19,144.12,26.0]
[1746461215773,6.9378,144.15,144.12,32.9387]
[1746461217770,25.04,144.19,144.12,26.0]
[1746461219574,6.9373,144.16,144.13,6.9385]
[1746461219767,6.9373,144.16,144.12,26.0]
[1746461220073,6.9373,144.16,144.13,6.9382]
[1746461220373,6.9376,144.15,144.12,26.0]
[1746461220973,6.9373,144.16,144.12,26.0]
[1746461221274,6.9373,144.16,144.13,6.9384]
[1746461221574,6.9373,144.16,144.12,26.0]
[1746461221775,6.9368,144.17,144.12,26.0]
[1746461221973,25.04,144.19,144.13,6.9382]
[1746461222976,6.9373,144.16,144.13,6.9382]
[1746461224176,6.9373,144.16,144.12,26.0]
[1746461224377,6.9376,144.15,144.12,26.0]
[1746461224675,25.04,144.19,144.12,26.0]
[1746461224864,6.9385,144.13,144.12,26.0]
[1746461225066,6.9385,144.13,144.12,1.0]
[1746461227473,6.9407,144.09,144.06,4.1853]
[1746461227676,36.75390044,144.14,144.05,25.0]
[1746461228568,11.75390044,144.17,144.05,25.0]
[1746461228771,24.98,144.16,144.06,2.1661]
[1746461228976,24.98,144.16,144.07,11.75390044]
[1746461229172,31.9172,144.16,144.11,6.939]
[1746461229372,31.9172,144.16,144.09,24.98]
[1746461229984,31.9172,144.16,144.11,6.9394]
[1746461230283,31.9172,144.16,144.09,24.98]
[1746461230479,31.9172,144.16,144.12,6.9386]
[1746461230784,31.9172,144.16,144.1,11.75390044]
[1746461230785,24.48056818,144.16,144.1,11.75390044]
[1746461231176,24.48056818,144.16,144.11,2.0098]
[1746461231372,24.48056818,144.16,144.12,1.9553]
[1746461232286,24.48056818,144.16,144.14,6.9376]
[1746461233792,31.41766818,144.16,144.14,6.9376]
[1746461233987,6.9371,144.16,144.14,6.9376]
[1746461234285,6.9371,144.16,144.13,6.9383]
[1746461235592,6.9371,144.16,144.14,6.9379]
[1746461238194,6.9363,144.18,144.15,6.9375]
[1746461238593,6.9363,144.18,144.13,24.98]
[1746461238895,6.9368,144.17,144.14,6.9378]
[1746461240894,6.9372,144.16,144.13,31.9182]
[1746461241192,24.98,144.19,144.13,31.9182]
[1746461241393,6.9374,144.16,144.13,31.9182]
[1746461243795,24.98,144.19,144.13,24.98]
[1746461244299,6.9378,144.15,144.13,24.98]
[1746461244889,6.938,144.14,144.13,24.98]
[1746461245393,6.938,144.14,144.12,1.9553]
[1746461245595,24.98,144.15,144.08,26.9472]
[1746461246099,6.9402,144.1,144.08,26.9472]
[1746461246295,24.98,144.15,144.08,26.9472]
[1746461247093,6.9393,144.12,144.08,26.9472]
[1746461247290,24.98,144.15,144.08,26.9472]
[1746461247694,26.9699,144.18,144.09,2.1133]
[1746461248095,24.98,144.18,144.09,13.86720044]
[1746461248698,6.9373,144.16,144.13,6.9384]
[1746461248898,24.98,144.18,144.12,24.98]
[1746461249894,6.9373,144.16,144.13,6.9382]
[1746461250198,24.98,144.18,144.12,24.98]
[1746461250395,6.9375,144.15,144.12,31.9187]
[1746461250597,6.9375,144.15,144.12,24.98]
[1746461251500,6.9372,144.16,144.12,24.98]
[1746461252002,6.9372,144.16,144.13,6.938]
[1746461252200,6.9372,144.16,144.12,24.98]
[1746461252602,6.9372,144.16,144.13,6.9381]
[1746461253103,6.9375,144.15,144.13,6.9381]
[1746461253302,11.75390044,144.2,144.14,6.938]
[1746461253800,11.75390044,144.2,144.13,6.9383]
[1746461254000,11.75390044,144.2,144.12,24.98]
[1746461254202,6.9375,144.16,144.12,24.98]
[1746461254404,6.9375,144.16,144.13,6.9385]
[1746461256608,6.9371,144.16,144.14,6.9379]
[1746461257204,6.9371,144.16,144.13,6.9382]
[1746461257906,6.9371,144.16,144.14,6.9379]
[1746461258405,6.9371,144.16,144.12,24.98]
[1746461258606,38.8497,144.21,144.13,6.9383]
[1746461259107,6.9372,144.16,144.13,6.9383]
[1746461259805,6.9372,144.16,144.14,6.9379]
[1746461260206,6.9372,144.16,144.12,24.98]
[1746461260409,6.9376,144.15,144.13,6.9382]
[1746461260797,38.8497,144.21,144.13,6.9382]
[1746461261001,6.9374,144.16,144.13,6.9382]
[1746461261307,6.9374,144.16,144.14,6.938]
[1746461261507,6.9374,144.16,144.12,24.98]
[1746461262009,6.9374,144.16,144.13,6.9382]
[1746461262509,6.9368,144.17,144.14,6.9376]
[1746461263813,6.937,144.16,144.14,6.9376]
[1746461264107,24.98,144.21,144.13,2.0969]
[1746461264305,24.98,144.21,144.14,4.0706]
[1746461265007,6.936,144.19,144.17,6.9365]
[1746461267410,6.9353,144.2,144.17,6.9365]
[1746461267709,1.9958,144.23,144.16,24.96]
[1746461267911,6.9352,144.2,144.16,24.96]
[1746461268308,24.96,144.25,144.18,6.9358]
[1746461268708,24.96,144.25,144.16,24.96]
[1746461269016,24.96,144.25,144.18,6.9358]
[1746461269208,6.9347,144.21,144.18,6.9358]
[1746461270017,6.9347,144.21,144.19,6.9356]
[1746461270514,6.9347,144.21,144.18,6.9358]
[1746461272415,6.9352,144.2,144.18,6.9358]
[1746461273116,6.9348,144.21,144.18,6.9358]
[1746461277022,11.75390044,144.24,144.16,31.8968]
[1746461277317,11.75390044,144.21,144.06,563.3833]
[1746461277518,24.96,144.2,144.13,6.9382]
[1746461277716,26.9289,144.2,144.13,6.9382]
[1746461277921,26.9289,144.2,144.11,24.96]
[1746461278119,26.9289,144.2,144.12,6.9386]
[1746461278617,6.9378,144.15,144.12,6.9386]
[1746461279010,26.9289,144.2,144.11,24.96]
[1746461279214,6.9388,144.13,144.11,24.96]
[1746461279920,6.9382,144.14,144.1,7.9397]
[1746461280121,6.9382,144.14,144.11,6.9393]
[1746461280420,6.9375,144.15,144.1,1.0]
[1746461280716,26.9289,144.2,144.13,6.9382]
[1746461281123,26.8289,144.2,144.13,6.9382]
[1746461281321,6.9373,144.16,144.13,6.9382]
[1746461281522,26.8289,144.2,144.11,2.1159]